fUSD/lending_fUSD_20250105
["ID","MTS","AMOUNT","RATE_DAILY","PERIOD"]
[347742557,1736088673476,-1143.01,9.863e-05,2]
[347742558,1736088673486,-656.43,9.863e-05,2]
[347742559,1736088673496,-500.0,9.863e-05,2]
[347742560,1736088673505,-1667.39,9.863e-05,2]
[347742561,1736088673515,-500.0,9.863e-05,2]
[347742562,1736088673525,-500.88,9.863e-05,2]
[347742563,1736088673535,-500.0,9.863e-05,2]
[347742564,1736088673544,-531.88,9.863e-05,2]
[347742565,1736088673554,-500.0,9.863e-05,2]
[347742566,1736088673564,-4384.56,9.863e-05,2]
[347742567,1736088673574,-1109.43,9.863e-05,2]
[347742568,1736088673584,-500.0,9.863e-05,2]
[347742569,1736088673594,-818.99,9.863e-05,2]
[347742570,1736088673604,-679.54,9.863e-05,2]
[347742571,1736088673614,-1244.62,9.863e-05,2]
[347742572,1736088673624,-714.74,9.863e-05,2]
[347742573,1736088673633,-582.89,9.863e-05,2]
[347742574,1736088673643,-1010.03,9.863e-05,2]
[347742575,1736088673652,-537.31,9.863e-05,2]
[347742576,1736088673662,-4247.44,9.863e-05,2]
[347742577,1736088673672,-500.0,9.863e-05,2]
[347742578,1736088673682,-1877.91,9.863e-05,2]
[347742579,1736088673692,-1289.27,9.863e-05,2]
[347742580,1736088673702,-771.33,9.863e-05,2]
[347742581,1736088673713,-500.0,9.863e-05,2]
[347742582,1736088673723,-633.32,9.863e-05,2]
[347742583,1736088673732,-881.19,9.863e-05,2]
[347742584,1736088673742,-1161.48,9.863e-05,2]
[347742585,1736088673751,-500.0,9.863e-05,2]
[347742586,1736088673761,-1415.78,9.863e-05,2]
[347742587,1736088673770,-878.66,9.863e-05,2]
[347742588,1736088673780,-3403.52,9.863e-05,2]
[347742589,1736088673789,-500.0,9.863e-05,2]
[347742590,1736088673798,-553.24,9.863e-05,2]
[347742591,1736088673808,-654.57,9.863e-05,2]
[347742592,1736088673818,-500.0,9.863e-05,2]
[347742593,1736088673828,-662.97,9.863e-05,2]
[347742594,1736088673838,-1073.67,9.863e-05,2]
[347742595,1736088673848,-1284.56,9.863e-05,2]
[347742596,1736088673858,-510.2,9.863e-05,2]
[347742597,1736088673867,-623.32,9.863e-05,2]
[347742598,1736088673877,-500.0,9.863e-05,2]
[347742599,1736088673886,-2312.26,9.863e-05,2]
[347742600,1736088673895,-1009.54,9.863e-05,2]
[347742601,1736088673905,-1022.52,9.863e-05,2]
[347742602,1736088673915,-500.0,9.863e-05,2]
[347742603,1736088673924,-746.31,9.863e-05,2]
[347742604,1736088673934,-594.54,9.863e-05,2]
[347742605,1736088673944,-2040.99,9.863e-05,2]
[347742606,1736088673954,-549.79,9.863e-05,2]
[347742607,1736088673964,-920.55,9.863e-05,2]
[347742608,1736088673975,-2359.74,9.863e-05,2]
[347742609,1736088673985,-500.0,9.899e-05,2]
[347742610,1736088673995,-3166.1447,9.9e-05,2]
[347742611,1736088674004,-272063.3779,9.9e-05,2]
[347742612,1736088674014,-1181.0272,9.9e-05,2]
[347742613,1736088674024,-329.35,9.926e-05,2]
[347742614,1736088674033,-500.9777274,9.973e-05,2]
[347742615,1736088674042,-150.0,9.973e-05,2]
[347742616,1736088674051,-150.0,9.973e-05,2]
[347742617,1736088674062,-26078.22930689,9.995e-05,4]
[347742618,1736088674072,-160.57245014,0.0001,10]
[347742619,1736088674082,-4356.41837399,0.0001,2]
[347742620,1736088674091,-182545.0,0.0001,2]
[347742621,1736088674101,-577290.88087893,0.0001,2]
[347742622,1736088674110,-1008.65,0.0001,2]
[347742623,1736088674119,-3000.0,0.0001,2]
[347742624,1736088674128,-1694.51898078,0.0001,2]
[347742625,1736088674137,-1678.20720688,0.0001,2]
[347742626,1736088674146,-596.97194328,0.0001,2]
[347742627,1736088674156,-1487.87,0.0001,2]
[347742628,1736088674166,-5186.661739,0.00010008,2]
[347742629,1736088674175,-17071.9083563,0.00010015,2]
[347742630,1736088674184,-1678.810092,0.00010022,2]
[347742631,1736088674193,-500.0,0.00010036,2]
[347742632,1736088674201,-509.0,0.00010055,2]
[347742633,1736088674211,-248.3741397,0.000101,2]
[347742634,1736088674225,-500.0,0.00010136,2]
[347742635,1736088674235,-1082.324567,0.00010136,2]
[347742636,1736088674245,-1226.741349,0.00010136,2]
[347742637,1736088674255,-155.906236,0.00010136,2]
[347742638,1736088674264,-156.503976,0.00010136,2]
[347742639,1736088674274,-500.0,0.00010136,2]
[347742640,1736088674283,-500.0,0.00010136,2]
[347742641,1736088674293,-500.0,0.00010136,2]
[347742642,1736088674302,-760.43,0.00010136,2]
[347742643,1736088674311,-500.0,0.00010136,2]
[347742644,1736088674321,-705.02,0.00010136,2]
[347742645,1736088674331,-552.44,0.00010136,2]
[347742646,1736088674340,-1434.98,0.00010136,2]
[347742647,1736088674350,-500.0,0.00010136,2]
[347742648,1736088674360,-500.0,0.00010136,2]
[347742649,1736088674369,-500.0,0.00010136,2]
[347742650,1736088674380,-500.0,0.00010136,2]
[347742651,1736088674391,-2144.39,0.00010136,2]
[347742652,1736088674400,-570.39,0.00010136,2]
[347742653,1736088674409,-500.0,0.00010136,2]
[347742654,1736088674418,-1799.96,0.00010136,2]
[347742655,1736088674427,-500.0,0.00010136,2]
[347742656,1736088674436,-2272.66,0.00010136,2]
[347742657,1736088674446,-500.0,0.00010136,2]
[347742658,1736088674456,-500.0,0.00010136,2]
[347742659,1736088674466,-675.29,0.00010136,2]
[347742660,1736088674476,-500.0,0.00010136,2]
[347742661,1736088674486,-500.0,0.00010136,2]
[347742662,1736088674496,-500.0,0.00010136,2]
[347742663,1736088674506,-3594.34,0.00010136,2]
[347742664,1736088674516,-500.0,0.00010136,2]
[347742665,1736088674525,-677.14,0.00010136,2]
[347742666,1736088674535,-684.64,0.00010136,2]
[347742667,1736088674544,-500.0,0.00010136,2]
[347742668,1736088674553,-500.0,0.00010136,2]
[347742669,1736088674563,-655.72,0.00010136,2]
[347742670,1736088674572,-214.09948099,0.00010136,2]
[347742671,1736088674582,-500.0,0.00010136,2]
[347742672,1736088674592,-500.0,0.00010136,2]
[347742673,1736088674602,-1098.47,0.00010136,2]
[347742674,1736088674611,-573.63,0.00010136,2]
[347742675,1736088674621,-500.0,0.00010136,2]
[347742676,1736088674630,-1388.66,0.00010136,2]
[347742677,1736088674639,-536.39,0.00010136,2]
[347742678,1736088674649,-500.0,0.00010136,2]
[347742679,1736088674658,-1290.85,0.00010136,2]
[347742680,1736088674668,-594.04,0.00010136,2]
[347742681,1736088674677,-743.07,0.00010136,2]
[347742682,1736088674687,-1013.41,0.00010136,2]
[347742683,1736088674696,-735.81,0.00010136,2]
[347742684,1736088674706,-500.0,0.00010136,2]
[347742685,1736088674716,-500.0,0.00010136,2]
[347742686,1736088674726,-500.0,0.00010136,2]
[347742687,1736088674735,-584.3,0.00010136,2]
[347742688,1736088674745,-2077.18,0.00010136,2]
[347742689,1736088674754,-1447.55,0.00010136,2]
[347742690,1736088674762,-500.0,0.00010136,2]
[347742691,1736088674771,-6663.09,0.00010136,2]
[347742692,1736088674782,-857.37,0.00010136,2]
[347742693,1736088674791,-2919.98,0.00010136,2]
[347742694,1736088674800,-361.64,0.00010136,2]
[347742695,1736088674809,-500.0,0.00010136,2]
[347742696,1736088674819,-514.57,0.00010136,2]
[347742697,1736088674828,-500.0,0.00010136,2]
[347742698,1736088674837,-518.87,0.00010136,2]
[347742699,1736088674846,-500.0,0.00010136,2]
[347742700,1736088674855,-625.05,0.00010136,2]
[347742701,1736088674865,-3877.66,0.00010136,2]
[347742702,1736088674874,-500.0,0.00010136,2]
[347742703,1736088674884,-500.0,0.00010136,2]
[347742704,1736088674893,-540.94,0.00010136,2]
[347742705,1736088674902,-507.07,0.00010136,2]
[347742706,1736088674911,-500.0,0.00010136,2]
[347742707,1736088674920,-500.0,0.00010136,2]
[347742708,1736088674930,-744.03,0.00010136,2]
[347742709,1736088674939,-918.85,0.00010136,2]
[347742710,1736088674948,-500.0,0.00010136,2]
[347742711,1736088674957,-703.9,0.00010136,2]
[347742712,1736088674968,-707.26,0.00010136,2]
[347742713,1736088674977,-500.0,0.00010136,2]
[347742714,1736088674987,-535.44,0.00010136,2]
[347742715,1736088674997,-805.02,0.00010136,2]
[347742716,1736088675007,-1422.38,0.00010136,2]
[347742717,1736088675016,-500.0,0.00010136,2]
[347742718,1736088675026,-500.0,0.00010136,2]
[347742719,1736088675035,-879.47,0.00010136,2]
[347742720,1736088675044,-559.6,0.00010136,2]
[347742721,1736088675054,-500.0,0.00010136,2]
[347742722,1736088675063,-629.53,0.00010136,2]
[347742723,1736088675073,-500.0,0.00010136,2]
[347742724,1736088675083,-536.5,0.00010136,2]
[347742725,1736088675092,-943.81,0.00010136,2]
[347742726,1736088675102,-500.0,0.00010136,2]
[347742727,1736088675111,-854.59,0.00010136,2]
[347742728,1736088675120,-685.17,0.00010136,2]
[347742729,1736088675129,-500.0,0.00010136,2]
[347742730,1736088675139,-500.0,0.00010136,2]
[347742731,1736088675148,-500.0,0.00010136,2]
[347742732,1736088675164,-500.0,0.00010136,2]
[347742733,1736088675173,-608.24,0.00010136,2]
[347742734,1736088675183,-1008.09,0.00010136,2]
[347742735,1736088675193,-1673.43,0.00010136,2]
[347742736,1736088675203,-500.0,0.00010136,2]
[347742737,1736088675215,-500.0,0.00010136,2]
[347742738,1736088675225,-1008.87,0.00010136,2]
[347742739,1736088675234,-519.54,0.00010136,2]
[347742740,1736088675244,-822.67,0.00010136,2]
[347742741,1736088675253,-157.20290599,0.00010136,2]
[347742742,1736088675263,-552.41,0.00010136,2]
[347742743,1736088675273,-500.0,0.00010136,2]
[347742744,1736088675282,-578.84,0.00010136,2]
[347742745,1736088675291,-4801.48,0.00010136,2]
[347742746,1736088675301,-588.95,0.00010136,2]
[347742747,1736088675311,-656.59,0.00010136,2]
[347742748,1736088675320,-860.4,0.00010136,2]
[347742749,1736088675330,-810.01,0.00010136,2]
[347742750,1736088675339,-500.0,0.00010136,2]
[347742751,1736088675348,-798.87,0.00010136,2]
[347742752,1736088675358,-558.05,0.00010136,2]
[347742753,1736088675367,-1037.16,0.00010136,2]
[347742754,1736088675378,-500.0,0.00010136,2]
[347742755,1736088675387,-500.0,0.00010136,2]
[347742756,1736088675396,-798.02,0.00010136,2]
[347742757,1736088675405,-500.0,0.00010136,2]
[347742758,1736088675415,-500.0,0.00010136,2]
[347742759,1736088675425,-626.85,0.00010136,2]
[347742760,1736088675434,-920.34,0.00010136,2]
[347742761,1736088675444,-500.0,0.00010136,2]
[347742762,1736088675452,-734.38,0.00010136,2]
[347742763,1736088675462,-406.3330271,0.00010136,2]
[347742764,1736088675472,-2241.04,0.00010136,2]
[347742765,1736088675482,-560.28,0.00010136,2]
[347742766,1736088675492,-500.0,0.00010136,2]
[347742767,1736088675501,-500.0,0.00010136,2]
[347742768,1736088675510,-500.0,0.00010136,2]
[347742769,1736088675520,-500.0,0.00010136,2]
[347742770,1736088675529,-814.44,0.00010136,2]
[347742771,1736088675539,-603.48,0.00010136,2]
[347742772,1736088675548,-686.2,0.00010136,2]
[347742773,1736088675557,-500.0,0.00010136,2]
[347742774,1736088675566,-504.64,0.00010136,2]
[347742775,1736088675575,-500.0,0.00010136,2]
[347742776,1736088675585,-598.61,0.00010136,2]
[347742777,1736088675594,-970.15,0.00010136,2]
[347742778,1736088675604,-500.0,0.00010136,2]
[347742779,1736088675613,-503.0,0.00010136,2]
[347742780,1736088675623,-598.92,0.00010136,2]
[347742781,1736088675632,-870.34,0.00010136,2]
[347742782,1736088675641,-561.67,0.00010136,2]
[347742783,1736088675651,-599.13,0.00010136,2]
[347742784,1736088675660,-577.37,0.00010136,2]
[347742785,1736088675670,-1374.03,0.00010136,2]
[347742786,1736088675680,-500.0,0.00010136,2]
[347742787,1736088675690,-913.29,0.00010136,2]
[347742788,1736088675699,-1483.17,0.00010136,2]
[347742789,1736088675709,-607.47,0.00010136,2]
[347742790,1736088675720,-500.0,0.00010136,2]
[347742791,1736088675729,-500.0,0.00010136,2]
[347742792,1736088675739,-543.44,0.00010136,2]
[347742793,1736088675748,-1286.2,0.00010136,2]
[347742794,1736088675757,-1384.98,0.00010136,2]
[347742795,1736088675767,-500.0,0.00010136,2]
[347742796,1736088675776,-500.0,0.00010136,2]
[347742797,1736088675785,-515.88,0.00010136,2]
[347742798,1736088675795,-963.0,0.00010136,2]
[347742799,1736088675804,-556.77,0.00010136,2]
[347742800,1736088675813,-965.51,0.00010136,2]
[347742801,1736088675823,-500.0,0.00010136,2]
[347742802,1736088675832,-632.25,0.00010136,2]
[347742803,1736088675841,-574.84,0.00010136,2]
[347742804,1736088675850,-1412.85,0.00010136,2]
[347742805,1736088675860,-1091.32,0.00010136,2]
[347742806,1736088675870,-718.45,0.00010136,2]
[347742807,1736088675879,-1417.04,0.00010136,2]
[347742808,1736088675889,-500.0,0.00010136,2]
[347742809,1736088675898,-968.22,0.00010136,2]
[347742810,1736088675907,-555.72,0.00010136,2]
[347742811,1736088675917,-500.0,0.00010136,2]
[347742812,1736088675926,-500.0,0.00010136,2]
[347742813,1736088675936,-605.84,0.00010136,2]
[347742814,1736088675946,-500.0,0.00010136,2]
[347742815,1736088675956,-610.95,0.00010136,2]
[347742816,1736088675966,-625.16,0.00010136,2]
[347742817,1736088675976,-596.18,0.00010136,2]
[347742818,1736088675986,-1014.88,0.00010136,2]
[347742819,1736088675996,-1217.16,0.00010136,2]
[347742820,1736088676005,-764.25,0.00010136,2]
[347742821,1736088676014,-508.56,0.00010136,2]
[347742822,1736088676023,-545.42,0.00010136,2]
[347742823,1736088676032,-1097.3,0.00010136,2]
[347742824,1736088676043,-768.49,0.00010136,2]
[347742825,1736088676053,-500.0,0.00010136,2]
[347742826,1736088676065,-500.0,0.00010136,2]
[347742827,1736088676076,-563.59,0.00010136,2]
[347742828,1736088676086,-763.9,0.00010136,2]
[347742829,1736088676096,-500.0,0.00010136,2]
[347742830,1736088676106,-566.7,0.00010136,2]
[347742831,1736088676117,-500.0,0.00010136,2]
[347742832,1736088676128,-614.33,0.00010136,2]
[347742833,1736088676138,-500.0,0.00010136,2]
[347742834,1736088676148,-1046.03,0.00010136,2]
[347742835,1736088676158,-736.4,0.00010136,2]
[347742836,1736088676168,-500.0,0.00010136,2]
[347742837,1736088676177,-500.0,0.00010136,2]
[347742838,1736088676187,-527.49,0.00010136,2]
[347742839,1736088676200,-3361.51,0.00010136,2]
[347742840,1736088676210,-938.52,0.00010136,2]
[347742841,1736088676221,-500.0,0.00010136,2]
[347742842,1736088676232,-500.0,0.00010136,2]
[347742843,1736088676243,-881.7,0.00010136,2]
[347742844,1736088676254,-500.0,0.00010136,2]
[347742845,1736088676266,-724.35,0.00010136,2]
[347742846,1736088676277,-500.0,0.00010136,2]
[347742847,1736088676287,-604.77,0.00010136,2]
[347742848,1736088676298,-3473.0,0.00010136,2]
[347742849,1736088676308,-500.0,0.00010136,2]
[347742850,1736088676318,-500.0,0.00010136,2]
[347742851,1736088676328,-676.76,0.00010136,2]
[347742852,1736088676339,-500.0,0.00010136,2]
[347742853,1736088676349,-500.0,0.00010136,2]
[347742854,1736088676359,-572.37,0.00010136,2]
[347742855,1736088676369,-1832.31,0.00010136,2]
[347742856,1736088676383,-500.0,0.00010136,2]
[347742857,1736088676395,-500.0,0.00010136,2]
[347742858,1736088676406,-500.0,0.00010136,2]
[347742859,1736088676416,-500.0,0.00010136,2]
[347742860,1736088676427,-526.4,0.00010136,2]
[347742861,1736088676437,-500.0,0.00010136,2]
[347742862,1736088676448,-919.97,0.00010136,2]
[347742863,1736088676458,-802.66,0.00010136,2]
[347742864,1736088676468,-500.0,0.00010136,2]
[347742865,1736088676478,-2039.82,0.00010136,2]
[347742866,1736088676489,-739.71,0.00010136,2]
[347742867,1736088676499,-558.45,0.00010136,2]
[347742868,1736088676509,-2561.32,0.00010136,2]
[347742869,1736088676519,-2547.77,0.00010136,2]
[347742870,1736088676529,-755.79,0.00010136,2]
[347742871,1736088676538,-628.11,0.00010136,2]
[347742872,1736088676549,-500.0,0.00010136,2]
[347742873,1736088676559,-500.0,0.00010136,2]
[347742874,1736088676571,-1678.51,0.00010136,2]
[347742875,1736088676581,-637.32,0.00010136,2]
[347742876,1736088676591,-500.0,0.00010136,2]
[347742877,1736088676602,-1939.56,0.00010136,2]
[347742878,1736088676611,-967.35,0.00010136,2]
[347742879,1736088676622,-2938.08,0.00010136,2]
[347742880,1736088676632,-503.91,0.00010136,2]
[347742881,1736088676642,-1484.18,0.00010136,2]
[347742882,1736088676653,-575.66,0.00010136,2]
[347742883,1736088676664,-527.8,0.00010136,2]
[347742884,1736088676674,-737.38,0.00010136,2]
[347742885,1736088676685,-7180.0,0.00010136,2]
[347742886,1736088676695,-500.0,0.00010136,2]
[347742887,1736088676705,-865.87,0.00010136,2]
[347742888,1736088676715,-4188.92,0.00010136,2]
[347742889,1736088676725,-699.37,0.00010136,2]
[347742890,1736088676735,-202.9,0.00010136,2]
[347742891,1736088676745,-1392.46,0.00010136,2]
[347742892,1736088676755,-944.8,0.00010136,2]
[347742893,1736088676765,-384.82,0.00010136,2]
[347742894,1736088676775,-1443.92,0.00010136,2]
[347742895,1736088676786,-2079.08,0.00010136,2]
[347742896,1736088676796,-795.66,0.00010136,2]
[347742897,1736088676806,-1036.34,0.00010136,2]
[347742898,1736088676816,-615.56,0.00010136,2]
[347742899,1736088676831,-5368.55,0.00010136,2]
[347742900,1736088676842,-1450.42,0.00010136,2]
[347742901,1736088676852,-500.0,0.00010136,2]
[347742902,1736088676862,-500.0,0.00010136,2]
[347742903,1736088676872,-700.3,0.00010136,2]
[347742904,1736088676883,-2917.33,0.00010136,2]
[347742905,1736088676894,-500.0,0.00010136,2]
[347742906,1736088676904,-1779.94,0.00010136,2]
[347742907,1736088676915,-1408.14,0.00010136,2]
[347742908,1736088676925,-500.0,0.00010136,2]
[347742909,1736088676936,-889.13,0.00010136,2]
[347742910,1736088676947,-1210.96,0.00010136,2]
[347742911,1736088676957,-672.79,0.00010136,2]
[347742912,1736088676968,-500.0,0.00010136,2]
[347742913,1736088676978,-500.0,0.00010136,2]
[347742914,1736088676989,-2270.88,0.00010136,2]
[347742915,1736088677000,-500.0,0.00010136,2]
[347742916,1736088677011,-500.0,0.00010136,2]
[347742917,1736088677021,-1099.21,0.00010136,2]
[347742918,1736088677032,-5212.5,0.00010136,2]
[347742919,1736088677043,-3236.26,0.00010136,2]
[347742920,1736088677054,-235.35063896,0.00010136,2]
[347742921,1736088677064,-500.0,0.00010136,2]
[347742922,1736088677074,-1556.79,0.00010136,2]
[347742923,1736088677085,-756.09,0.00010136,2]
[347742924,1736088677096,-1042.74,0.00010136,2]
[347742925,1736088677107,-500.0,0.00010136,2]
[347742926,1736088677117,-4849.9,0.00010136,2]
[347742927,1736088677128,-500.0,0.00010136,2]
[347742928,1736088677138,-1032.58,0.00010136,2]
[347742929,1736088677149,-500.0,0.00010136,2]
[347742930,1736088677161,-500.0,0.00010136,2]
[347742931,1736088677172,-704.61,0.00010136,2]
[347742932,1736088677182,-1168.67,0.00010136,2]
[347742933,1736088677192,-534.28,0.00010136,2]
[347742934,1736088677203,-2585.05,0.00010136,2]
[347742935,1736088677213,-500.0,0.00010136,2]
[347742936,1736088677224,-585.25,0.00010136,2]
[347742937,1736088677235,-500.0,0.00010136,2]
[347742938,1736088677246,-1111.51,0.00010136,2]
[347742939,1736088677256,-1062.79,0.00010136,2]
[347742940,1736088677267,-500.0,0.00010136,2]
[347742941,1736088677278,-2756.73,0.00010136,2]
[347742942,1736088677288,-582.66,0.00010136,2]
[347742943,1736088677299,-868.14,0.00010136,2]
[347742944,1736088677309,-665.5,0.00010136,2]
[347742945,1736088677319,-904.94,0.00010136,2]
[347742946,1736088677329,-625.3,0.00010136,2]
[347742947,1736088677340,-1046.44,0.00010136,2]
[347742948,1736088677350,-4117.25,0.00010136,2]
[347742949,1736088677360,-500.0,0.00010136,2]
[347742950,1736088677371,-862.48,0.00010136,2]
[347742951,1736088677383,-2223.97,0.00010136,2]
[347742952,1736088677394,-790.34,0.00010136,2]
[347742953,1736088677405,-2398.78,0.00010136,2]
[347742954,1736088677415,-971.41,0.00010136,2]
[347742955,1736088677425,-2160.48,0.00010136,2]
[347742956,1736088677435,-2131.31,0.00010136,2]
[347742957,1736088677446,-500.0,0.00010136,2]
[347742958,1736088677456,-500.0,0.00010136,2]
[347742959,1736088677468,-697.71,0.00010136,2]
[347742960,1736088677479,-500.0,0.00010136,2]
[347742961,1736088677489,-837.45,0.00010136,2]
[347742962,1736088677499,-2020.06,0.00010136,2]
[347742963,1736088677510,-1341.14,0.00010136,2]
[347742964,1736088677520,-1143.01,0.00010136,2]
[347742965,1736088677530,-656.43,0.00010136,2]
[347742966,1736088677540,-500.0,0.00010136,2]
[347742967,1736088677550,-1667.39,0.00010136,2]
[347742968,1736088677560,-500.0,0.00010136,2]
[347742969,1736088677571,-500.88,0.00010136,2]
[347742970,1736088677582,-500.0,0.00010136,2]
[347742971,1736088677591,-531.88,0.00010136,2]
[347742972,1736088677601,-500.0,0.00010136,2]
[347742973,1736088677611,-4384.56,0.00010136,2]
[347742974,1736088677622,-500.0,0.00010136,2]
[347742975,1736088677633,-1109.43,0.00010136,2]
[347742976,1736088677643,-818.99,0.00010136,2]
[347742977,1736088677653,-1244.62,0.00010136,2]
[347742978,1736088677663,-679.54,0.00010136,2]
[347742979,1736088677674,-714.74,0.00010136,2]
[347742980,1736088677684,-582.89,0.00010136,2]
[347742981,1736088677694,-1010.03,0.00010136,2]
[347742982,1736088677704,-537.31,0.00010136,2]
[347742983,1736088677714,-4247.44,0.00010136,2]
[347742984,1736088677725,-500.0,0.00010136,2]
[347742985,1736088677735,-1877.91,0.00010136,2]
[347742986,1736088677745,-1289.27,0.00010136,2]
[347742987,1736088677756,-771.33,0.00010136,2]
[347742988,1736088677766,-363.11336318,0.00010136,2]
[347742989,1736088677776,-633.32,0.00010136,2]
[347742990,1736088677786,-881.19,0.00010136,2]
[347742991,1736088677796,-1161.48,0.00010136,2]
[347742992,1736088677807,-500.0,0.00010136,2]
[347742993,1736088677818,-1415.78,0.00010136,2]
[347742994,1736088677828,-878.66,0.00010136,2]
[347742995,1736088677838,-3403.52,0.00010136,2]
[347742996,1736088677848,-500.0,0.00010136,2]
[347742997,1736088677859,-553.24,0.00010136,2]
[347742998,1736088677868,-654.57,0.00010136,2]
[347742999,1736088677878,-500.0,0.00010136,2]
[347743000,1736088677888,-662.97,0.00010136,2]
[347743001,1736088677898,-1073.67,0.00010136,2]
[347743002,1736088677908,-1284.56,0.00010136,2]
[347743003,1736088677918,-510.2,0.00010136,2]
[347743004,1736088677928,-1275.61,0.00010136,2]
[347743005,1736088677937,-623.32,0.00010136,2]
[347743006,1736088677948,-500.0,0.00010136,2]
[347743007,1736088677959,-1009.54,0.00010136,2]
[347743008,1736088677971,-1022.52,0.00010136,2]
[347743009,1736088677981,-2312.26,0.00010136,2]
[347743010,1736088677992,-500.0,0.00010136,2]
[347743011,1736088678002,-746.31,0.00010136,2]
[347743012,1736088678013,-594.54,0.00010136,2]
[347743013,1736088678023,-2040.99,0.00010136,2]
[347743014,1736088678033,-549.79,0.00010136,2]
[347743015,1736088678044,-920.55,0.00010136,2]
[347743016,1736088678055,-2359.74,0.00010136,2]
[347743017,1736088678065,-555.12,0.00010137,2]
[347743018,1736088678076,-152.4,0.00010137,2]
[347743019,1736088678086,-159.6,0.00010137,2]
[347743020,1736088678097,-429.51484354,0.00010137,2]
[347743021,1736088678108,-500.0,0.00010168,2]
[347743022,1736088678119,-1057.0,0.00010171,2]
[347743023,1736088678129,-1304.91130086,0.00010193,2]
[347743024,1736088678139,-3858.26113715,0.000102,2]
[347743025,1736088678149,-1000.0,0.00010273,2]
[347743026,1736088678161,-1000.0,0.00010273,2]
[347743027,1736088678172,-1000.0,0.00010273,2]
[347743028,1736088678183,-1000.0,0.00010273,2]
[347743029,1736088678193,-1000.0,0.00010273,2]
[347743030,1736088678204,-1000.0,0.00010273,2]
[347743031,1736088678214,-1000.0,0.00010273,2]
[347743032,1736088678225,-164.87,0.00010274,2]
[347743033,1736088678236,-1000.0,0.00010274,2]
[347743034,1736088678247,-2429.6,0.00010392,2]
[347743035,1736088678257,-266.056759,0.00010407,2]
[347743036,1736088678267,-253.997241,0.00010407,2]
[347743037,1736088678277,-253.997242,0.00010407,2]
[347743038,1736088678287,-266.056759,0.00010407,2]
[347743039,1736088678297,-500.0,0.0001041,2]
[347743040,1736088678309,-1082.324567,0.0001041,2]
[347743041,1736088678319,-1226.741349,0.0001041,2]
[347743042,1736088678330,-155.906236,0.0001041,2]
[347743043,1736088678340,-156.503976,0.0001041,2]
[347743044,1736088678351,-158.748276,0.0001041,2]
[347743045,1736088678361,-500.0,0.0001041,2]
[347743046,1736088678371,-500.0,0.0001041,2]
[347743047,1736088678385,-500.0,0.0001041,2]
[347743048,1736088678397,-760.43,0.0001041,2]
[347743049,1736088678407,-393.88,0.0001041,2]
[347743050,1736088678417,-705.02,0.0001041,2]
[347743051,1736088678428,-552.44,0.0001041,2]
[347743052,1736088678438,-1434.98,0.0001041,2]
[347743053,1736088678449,-500.0,0.0001041,2]
[347743054,1736088678459,-500.0,0.0001041,2]
[347743055,1736088678470,-500.0,0.0001041,2]
[347743056,1736088678481,-500.0,0.0001041,2]